[Event "Early-Titled-Tuesday-Blitz-October-03-2023"]
[Site "Chess.com"]
[Date "2023.10.03"]
[Round "2"]
[White "Lady_Nika"]
[Black "Fantastic_Power"]
[Result "0-1"]
[WhiteElo "2534"]
[BlackElo "2764"]
[TimeControl "180+1"]
[EndTime "8:18:20 PDT"]
[Termination "Fantastic_Power won by resignation"]

1. e4 {[%clk 0:03:00.9]} 1... c5 {[%clk 0:02:59.8]} 2. Nc3 {[%clk 0:03:01.1]}
2... g6 {[%clk 0:02:58]} 3. g3 {[%clk 0:03:01.4]} 3... Bg7 {[%clk 0:02:58.3]} 4.
Bg2 {[%clk 0:03:02]} 4... Nc6 {[%clk 0:02:58.7]} 5. d3 {[%clk 0:03:02.5]} 5...
Rb8 {[%clk 0:02:56.6]} 6. f4 {[%clk 0:03:02.1]} 6... d6 {[%clk 0:02:55.8]} 7.
Nf3 {[%clk 0:03:01.2]} 7... e6 {[%clk 0:02:56.4]} 8. O-O {[%clk 0:03:00.8]} 8...
Nge7 {[%clk 0:02:57]} 9. Rb1 {[%clk 0:03:00.9]} 9... b5 {[%clk 0:02:56.3]} 10.
Ne2 {[%clk 0:03:01.1]} 10... O-O {[%clk 0:02:54.3]} 11. Be3 {[%clk 0:03:00.9]}
11... Qa5 {[%clk 0:02:45.4]} 12. Nc1 {[%clk 0:02:58.6]} 12... Bb7 {[%clk
0:02:35.6]} 13. g4 {[%clk 0:02:58.3]} 13... f5 {[%clk 0:02:28.7]} 14. Ng5 {[%clk
0:02:54.7]} 14... Bc8 {[%clk 0:02:28.4]} 15. gxf5 {[%clk 0:02:48.6]} 15... exf5
{[%clk 0:02:28.1]} 16. exf5 {[%clk 0:02:44.6]} 16... Bxf5 {[%clk 0:02:29]} 17.
Nb3 {[%clk 0:02:23]} 17... Qc7 {[%clk 0:02:21.2]} 18. Qf3 {[%clk 0:01:50.3]}
18... c4 {[%clk 0:02:09.8]} 19. Nc1 {[%clk 0:01:30.2]} 19... d5 {[%clk 0:02:00]}
20. b4 {[%clk 0:01:08.8]} 20... h6 {[%clk 0:01:47.6]} 21. Nh3 {[%clk 0:01:07.4]}
21... Nd4 {[%clk 0:01:05.6]} 22. Bxd4 {[%clk 0:01:06.2]} 22... Bxd4+ {[%clk
0:01:05.3]} 23. Kh1 {[%clk 0:01:06.7]} 23... Kh7 {[%clk 0:00:57.2]} 24. Ne2
{[%clk 0:01:05.8]} 24... Bf6 {[%clk 0:00:57.2]} 25. Ng3 {[%clk 0:01:04]} 25...
Rbd8 {[%clk 0:00:53.5]} 26. Rbe1 {[%clk 0:01:01]} 26... Bc3 {[%clk 0:00:48.3]}
27. Rc1 {[%clk 0:00:49.8]} 27... Bxb4 {[%clk 0:00:44.3]} 28. c3 {[%clk
0:00:44.6]} 28... Ba3 {[%clk 0:00:39.4]} 29. Nxf5 {[%clk 0:00:42.1]} 29... Bxc1
{[%clk 0:00:31.9]} 30. Nxe7 {[%clk 0:00:40.7]} 30... Qxe7 {[%clk 0:00:32.8]} 31.
Rxc1 {[%clk 0:00:39.9]} 31... d4 {[%clk 0:00:27]} 32. cxd4 {[%clk 0:00:38.6]}
32... Rxd4 {[%clk 0:00:27.9]} 33. dxc4 {[%clk 0:00:38.8]} 33... bxc4 {[%clk
0:00:28.8]} 34. Qc3 {[%clk 0:00:28.6]} 34... Rfd8 {[%clk 0:00:15.8]} 35. Re1
{[%clk 0:00:28.3]} 35... Qxe1+ {[%clk 0:00:13.3]} 36. Qxe1 {[%clk 0:00:27.3]}
36... Rd1 {[%clk 0:00:14.2]} 37. Qg1 {[%clk 0:00:18.6]} 37... Rxg1+ {[%clk
0:00:13]} 38. Kxg1 {[%clk 0:00:17.3]} 38... c3 {[%clk 0:00:13.3]} 39. Be4 {[%clk
0:00:17.5]} 39... Rd2 {[%clk 0:00:10.4]} 40. Nf2 {[%clk 0:00:15.5]} 40... c2
{[%clk 0:00:09.6]} 41. Bxc2 {[%clk 0:00:15.3]} 41... Rxc2 {[%clk 0:00:10.5]} 42.
a4 {[%clk 0:00:15.1]} 42... Ra2 {[%clk 0:00:10.9]} 43. Kg2 {[%clk 0:00:14.3]}
43... Rxa4 {[%clk 0:00:11.4]} 44. Kf3 {[%clk 0:00:14]} 44... Ra2 {[%clk
0:00:11.5]} 45. Ng4 {[%clk 0:00:13.4]} 45... h5 {[%clk 0:00:11.6]} 46. Nf6+
{[%clk 0:00:13.1]} 46... Kg7 {[%clk 0:00:12.2]} 47. Ne8+ {[%clk 0:00:13.2]}
47... Kh6 {[%clk 0:00:12.2]} 48. h4 {[%clk 0:00:12.3]} 48... Ra3+ {[%clk
0:00:12.1]} 49. Ke4 {[%clk 0:00:12.3]} 49... Rh3 {[%clk 0:00:11.5]} 50. Ke5
{[%clk 0:00:12.2]} 50... Rxh4 {[%clk 0:00:11]} 51. Nd6 {[%clk 0:00:12.6]} 51...
Rg4 {[%clk 0:00:09.3]} 52. Nf7+ {[%clk 0:00:11.6]} 52... Kg7 {[%clk 0:00:09.4]}
53. Nd6 {[%clk 0:00:11.5]} 53... h4 {[%clk 0:00:08.8]} 0-1

[Event "Early-Titled-Tuesday-Blitz-October-03-2023"]
[Site "Chess.com"]
[Date "2023.10.03"]
[Round "2"]
[White "NelsonLinda"]
[Black "Man-Chuk"]
[Result "1-0"]
[WhiteElo "2576"]
[BlackElo "2782"]
[TimeControl "180+1"]
[EndTime "8:18:24 PDT"]
[Termination "NelsonLinda won by checkmate"]

1. b3 {[%clk 0:03:00.9]} 1... d5 {[%clk 0:02:58.3]} 2. Bb2 {[%clk 0:03:00.6]}
2... Bf5 {[%clk 0:02:58.8]} 3. d3 {[%clk 0:02:59.4]} 3... e6 {[%clk 0:02:58.7]}
4. Nd2 {[%clk 0:02:59.6]} 4... Nf6 {[%clk 0:02:57.6]} 5. g3 {[%clk 0:02:59.8]}
5... h6 {[%clk 0:02:54.7]} 6. Bg2 {[%clk 0:02:59.7]} 6... Bh7 {[%clk 0:02:54.8]}
7. e4 {[%clk 0:02:59.4]} 7... Be7 {[%clk 0:02:53.4]} 8. Nh3 {[%clk 0:02:58.5]}
8... a5 {[%clk 0:02:44.1]} 9. a3 {[%clk 0:02:58]} 9... O-O {[%clk 0:02:38.6]}
10. O-O {[%clk 0:02:57.2]} 10... a4 {[%clk 0:02:30.7]} 11. b4 {[%clk 0:02:57.1]}
11... c5 {[%clk 0:02:31]} 12. bxc5 {[%clk 0:02:41.9]} 12... dxe4 {[%clk
0:02:25]} 13. Nxe4 {[%clk 0:02:31.8]} 13... Bxe4 {[%clk 0:02:02.3]} 14. dxe4
{[%clk 0:02:32.7]} 14... Bxc5 {[%clk 0:01:58.7]} 15. Nf4 {[%clk 0:02:26.1]}
15... Nc6 {[%clk 0:01:50.7]} 16. Nd3 {[%clk 0:02:12.8]} 16... Bd4 {[%clk
0:01:48.5]} 17. Rb1 {[%clk 0:02:01.1]} 17... Bxb2 {[%clk 0:01:44.2]} 18. Rxb2
{[%clk 0:02:02]} 18... Qe7 {[%clk 0:01:41.3]} 19. Qa1 {[%clk 0:02:00.2]} 19...
Rfc8 {[%clk 0:01:30.2]} 20. Rfb1 {[%clk 0:01:59.4]} 20... Rc7 {[%clk 0:01:30.2]}
21. Rb6 {[%clk 0:01:52.2]} 21... Na5 {[%clk 0:01:21.8]} 22. Qa2 {[%clk
0:01:32.8]} 22... Rac8 {[%clk 0:01:10.4]} 23. R6b2 {[%clk 0:01:30.8]} 23... Rc3
{[%clk 0:01:01.4]} 24. Qa1 {[%clk 0:00:52.8]} 24... Rxa3 {[%clk 0:00:59.3]} 25.
Ra2 {[%clk 0:00:53.2]} 25... Nc4 {[%clk 0:00:42.4]} 26. Rb4 {[%clk 0:00:49.3]}
26... Rxd3 {[%clk 0:00:38.5]} 27. Rxc4 {[%clk 0:00:43.8]} 27... Rxc4 {[%clk
0:00:32.9]} 28. cxd3 {[%clk 0:00:43.5]} 28... Rc5 {[%clk 0:00:21.5]} 29. Rxa4
{[%clk 0:00:43.7]} 29... Qc7 {[%clk 0:00:21.7]} 30. Rc4 {[%clk 0:00:31.5]} 30...
Rxc4 {[%clk 0:00:21.8]} 31. dxc4 {[%clk 0:00:32.4]} 31... Nd7 {[%clk 0:00:21.3]}
32. Qa8+ {[%clk 0:00:27.3]} 32... Kh7 {[%clk 0:00:19.8]} 33. e5 {[%clk
0:00:26.3]} 33... Nxe5 {[%clk 0:00:16.1]} 34. Bxb7 {[%clk 0:00:23.3]} 34... Qxc4
{[%clk 0:00:14.2]} 35. Qa1 {[%clk 0:00:20.8]} 35... Qe2 {[%clk 0:00:09.1]} 36.
Kg2 {[%clk 0:00:16]} 36... Ng4 {[%clk 0:00:06.1]} 37. Qd4 {[%clk 0:00:16.1]}
37... f5 {[%clk 0:00:03.4]} 38. h3 {[%clk 0:00:15.3]} 38... e5 {[%clk
0:00:03.9]} 39. Qb6 {[%clk 0:00:10.2]} 39... Nf6 {[%clk 0:00:04.2]} 40. Qe6
{[%clk 0:00:08.6]} 40... Qc2 {[%clk 0:00:01.4]} 41. Bc8 {[%clk 0:00:08.3]} 41...
Qxc8 {[%clk 0:00:01.2]} 42. Qxc8 {[%clk 0:00:08.2]} 42... Kg6 {[%clk 0:00:02.1]}
43. Qe6 {[%clk 0:00:08.2]} 43... Kg5 {[%clk 0:00:02.2]} 44. Qxe5 {[%clk
0:00:08.4]} 44... Kg6 {[%clk 0:00:02.6]} 45. h4 {[%clk 0:00:08.7]} 45... h5
{[%clk 0:00:02.9]} 46. Kf3 {[%clk 0:00:08.2]} 46... Ng4 {[%clk 0:00:03.3]} 47.
Qe6+ {[%clk 0:00:08.1]} 47... Nf6 {[%clk 0:00:03.2]} 48. Kf4 {[%clk 0:00:08.3]}
48... Kh7 {[%clk 0:00:03.8]} 49. Qxf5+ {[%clk 0:00:08.3]} 49... Kh6 {[%clk
0:00:04.5]} 50. Qe6 {[%clk 0:00:08.4]} 50... Kg6 {[%clk 0:00:04.8]} 51. Qd6
{[%clk 0:00:07.7]} 51... Kf7 {[%clk 0:00:05.1]} 52. Kf5 {[%clk 0:00:07.8]} 52...
g6+ {[%clk 0:00:05.5]} 53. Ke5 {[%clk 0:00:07.1]} 53... Ng4+ {[%clk 0:00:06.1]}
54. Kd4 {[%clk 0:00:06.9]} 54... Nf6 {[%clk 0:00:05.6]} 55. f3 {[%clk
0:00:07.4]} 55... Kg7 {[%clk 0:00:05.9]} 56. Qe7+ {[%clk 0:00:07.1]} 56... Kh6
{[%clk 0:00:05.3]} 57. Qxf6 {[%clk 0:00:07.7]} 57... Kh7 {[%clk 0:00:05.9]} 58.
Qf7+ {[%clk 0:00:08.4]} 58... Kh6 {[%clk 0:00:06.3]} 59. Ke5 {[%clk 0:00:08.4]}
59... g5 {[%clk 0:00:06.1]} 60. hxg5+ {[%clk 0:00:08.7]} 60... Kxg5 {[%clk
0:00:06.3]} 61. Qg7# {[%clk 0:00:09.2]} 1-0

[Event "Early-Titled-Tuesday-Blitz-October-03-2023"]
[Site "Chess.com"]
[Date "2023.10.03"]
[Round "2"]
[White "JimDiGrease"]
[Black "MokshAD1603"]
[Result "1/2-1/2"]
[WhiteElo "2911"]
[BlackElo "2620"]
[TimeControl "180+1"]
[EndTime "8:18:25 PDT"]
[Termination "Game drawn by repetition"]

1. d4 {[%clk 0:00:21.7]} 1... Nf6 {[%clk 0:02:56.7]} 2. c4 {[%clk 0:00:22.3]}
2... g6 {[%clk 0:02:51.5]} 3. Bf4 {[%clk 0:00:22.9]} 3... c5 {[%clk 0:02:37.2]}
4. d5 {[%clk 0:00:22.8]} 4... b5 {[%clk 0:02:27.1]} 5. Nf3 {[%clk 0:00:20.7]}
5... bxc4 {[%clk 0:02:25.4]} 6. Nc3 {[%clk 0:00:20.8]} 6... d6 {[%clk
0:02:18.9]} 7. e4 {[%clk 0:00:20.8]} 7... Ba6 {[%clk 0:02:17.7]} 8. h3 {[%clk
0:00:20.2]} 8... Bg7 {[%clk 0:02:17.3]} 9. Qa4+ {[%clk 0:00:19.8]} 9... Qd7
{[%clk 0:02:16]} 10. Qc2 {[%clk 0:00:20.4]} 10... O-O {[%clk 0:02:09]} 11. Be2
{[%clk 0:00:20.8]} 11... Qb7 {[%clk 0:02:02.5]} 12. O-O {[%clk 0:00:20.6]} 12...
Nbd7 {[%clk 0:02:02.7]} 13. Nd2 {[%clk 0:00:20.2]} 13... Rab8 {[%clk 0:02:01.9]}
14. Rab1 {[%clk 0:00:19.9]} 14... Nb6 {[%clk 0:01:36]} 15. a4 {[%clk 0:00:19.2]}
15... Qc7 {[%clk 0:01:25.4]} 16. a5 {[%clk 0:00:18.9]} 16... Nbd7 {[%clk
0:01:25]} 17. Bxc4 {[%clk 0:00:19.5]} 17... Bxc4 {[%clk 0:01:22]} 18. Nxc4
{[%clk 0:00:20.4]} 18... Rb4 {[%clk 0:01:22.3]} 19. b3 {[%clk 0:00:19.6]} 19...
Rfb8 {[%clk 0:01:22]} 20. Bd2 {[%clk 0:00:19.4]} 20... Qb7 {[%clk 0:01:13.3]}
21. Qd3 {[%clk 0:00:09.7]} 21... Nh5 {[%clk 0:00:59.5]} 22. g3 {[%clk
0:00:08.8]} 22... Bxc3 {[%clk 0:00:49.9]} 23. Bxc3 {[%clk 0:00:06.1]} 23... Rxb3
{[%clk 0:00:50.3]} 24. Rxb3 {[%clk 0:00:04.9]} 24... Qxb3 {[%clk 0:00:51.2]} 25.
Re1 {[%clk 0:00:04.2]} 25... Nhf6 {[%clk 0:00:36.9]} 26. f4 {[%clk 0:00:02.7]}
26... a6 {[%clk 0:00:34.1]} 27. e5 {[%clk 0:00:02]} 27... Ne8 {[%clk 0:00:33.4]}
28. exd6 {[%clk 0:00:02.1]} 28... Nxd6 {[%clk 0:00:34.3]} 29. Nxd6 {[%clk
0:00:02.6]} 29... exd6 {[%clk 0:00:35.2]} 30. Re3 {[%clk 0:00:00.5]} 30... Qb1+
{[%clk 0:00:34.8]} 31. Kg2 {[%clk 0:00:00.4]} 31... Qxd3 {[%clk 0:00:33.8]} 32.
Rxd3 {[%clk 0:00:00.8]} 32... Rb3 {[%clk 0:00:32]} 33. Re3 {[%clk 0:00:01.7]}
33... f6 {[%clk 0:00:30.1]} 34. Re7 {[%clk 0:00:01.4]} 34... Rxc3 {[%clk
0:00:28.6]} 35. Rxd7 {[%clk 0:00:02.1]} 35... Ra3 {[%clk 0:00:28.9]} 36. Rxd6
{[%clk 0:00:02.3]} 36... Rxa5 {[%clk 0:00:29.8]} 37. Rxf6 {[%clk 0:00:03]} 37...
Ra2+ {[%clk 0:00:17.8]} 38. Kf3 {[%clk 0:00:03.1]} 38... Ra3+ {[%clk 0:00:18.4]}
39. Kf2 {[%clk 0:00:03.3]} 39... Rd3 {[%clk 0:00:19]} 40. Rc6 {[%clk 0:00:04.2]}
40... Rxd5 {[%clk 0:00:18.7]} 41. Rxa6 {[%clk 0:00:05]} 41... Rd2+ {[%clk
0:00:19.4]} 42. Kf3 {[%clk 0:00:05.2]} 42... Rc2 {[%clk 0:00:20.3]} 43. Rc6
{[%clk 0:00:04.7]} 43... c4 {[%clk 0:00:19.5]} 44. Kg4 {[%clk 0:00:05.1]} 44...
Kg7 {[%clk 0:00:19.6]} 45. h4 {[%clk 0:00:04.7]} 45... Rc3 {[%clk 0:00:20]} 46.
h5 {[%clk 0:00:05.4]} 46... gxh5+ {[%clk 0:00:20.1]} 47. Kxh5 {[%clk 0:00:06.3]}
47... Rxg3 {[%clk 0:00:20.2]} 48. Rxc4 {[%clk 0:00:06.3]} 48... Rg6 {[%clk
0:00:21.1]} 49. f5 {[%clk 0:00:06.2]} 49... Rg1 {[%clk 0:00:20.6]} 50. Rc6
{[%clk 0:00:06.1]} 50... Kf7 {[%clk 0:00:20.1]} 51. Kh6 {[%clk 0:00:05.6]} 51...
Rh1+ {[%clk 0:00:19.8]} 52. Kg5 {[%clk 0:00:06.5]} 52... Rg1+ {[%clk 0:00:20.7]}
53. Kf4 {[%clk 0:00:07.1]} 53... Rh1 {[%clk 0:00:20.9]} 54. Rc7+ {[%clk
0:00:07]} 54... Kf6 {[%clk 0:00:20.9]} 55. Rc6+ {[%clk 0:00:07.9]} 55... Kf7
{[%clk 0:00:21.4]} 56. Ke5 {[%clk 0:00:07.7]} 56... Re1+ {[%clk 0:00:21.6]} 57.
Kf4 {[%clk 0:00:07.9]} 57... Rf1+ {[%clk 0:00:22.1]} 58. Kg5 {[%clk 0:00:08.6]}
58... Rg1+ {[%clk 0:00:22.7]} 59. Kh4 {[%clk 0:00:09.3]} 59... Rh1+ {[%clk
0:00:23.2]} 60. Kg4 {[%clk 0:00:09.9]} 60... Rg1+ {[%clk 0:00:23.6]} 61. Kf3
{[%clk 0:00:10.6]} 61... Rf1+ {[%clk 0:00:24]} 62. Ke4 {[%clk 0:00:10.7]} 62...
Re1+ {[%clk 0:00:24.4]} 63. Kd5 {[%clk 0:00:11.3]} 63... Rd1+ {[%clk 0:00:24.7]}
64. Ke5 {[%clk 0:00:11.9]} 64... Re1+ {[%clk 0:00:25.1]} 65. Kf4 {[%clk
0:00:12.6]} 65... Rf1+ {[%clk 0:00:25.6]} 66. Kg5 {[%clk 0:00:13.3]} 66... Rg1+
{[%clk 0:00:25.9]} 1/2-1/2

[Event "Early-Titled-Tuesday-Blitz-October-03-2023"]
[Site "Chess.com"]
[Date "2023.10.03"]
[Round "2"]
[White "ChainedDowntohell"]
[Black "ferrufino64"]
[Result "0-1"]
[WhiteElo "2441"]
[BlackElo "2205"]
[TimeControl "180+1"]
[EndTime "8:18:28 PDT"]
[Termination "ferrufino64 won by checkmate"]

1. d4 {[%clk 0:03:00.9]} 1... d5 {[%clk 0:02:56.9]} 2. Nf3 {[%clk 0:02:58.2]}
2... Nf6 {[%clk 0:02:56.1]} 3. c4 {[%clk 0:02:58]} 3... e6 {[%clk 0:02:56]} 4.
e3 {[%clk 0:02:57]} 4... b6 {[%clk 0:02:51.5]} 5. b3 {[%clk 0:02:56]} 5... Bb7
{[%clk 0:02:45.6]} 6. Bd3 {[%clk 0:02:55.6]} 6... Be7 {[%clk 0:02:41.8]} 7. O-O
{[%clk 0:02:54.6]} 7... O-O {[%clk 0:02:41.5]} 8. Bb2 {[%clk 0:02:54.6]} 8...
Nbd7 {[%clk 0:02:41.7]} 9. Nc3 {[%clk 0:02:50.3]} 9... dxc4 {[%clk 0:02:40.5]}
10. bxc4 {[%clk 0:02:46.3]} 10... c5 {[%clk 0:02:40.5]} 11. d5 {[%clk 0:02:30]}
11... exd5 {[%clk 0:02:38.3]} 12. cxd5 {[%clk 0:02:29.9]} 12... Rc8 {[%clk
0:01:59.5]} 13. e4 {[%clk 0:02:29.3]} 13... c4 {[%clk 0:01:59]} 14. Bc2 {[%clk
0:02:24]} 14... Nc5 {[%clk 0:01:58.9]} 15. Qd4 {[%clk 0:01:45.1]} 15... Nd3
{[%clk 0:01:20]} 16. Bxd3 {[%clk 0:01:42.9]} 16... cxd3 {[%clk 0:01:20.9]} 17.
Qxd3 {[%clk 0:01:37.8]} 17... Nd7 {[%clk 0:01:20.7]} 18. Rfd1 {[%clk 0:01:29.8]}
18... Nc5 {[%clk 0:01:20]} 19. Qe3 {[%clk 0:01:28.8]} 19... Re8 {[%clk
0:01:16.1]} 20. e5 {[%clk 0:01:24.7]} 20... Bf8 {[%clk 0:01:12.4]} 21. Qf4
{[%clk 0:01:10]} 21... a6 {[%clk 0:01:05.7]} 22. h4 {[%clk 0:01:06.3]} 22... b5
{[%clk 0:01:05.4]} 23. Ng5 {[%clk 0:00:56.4]} 23... Qd7 {[%clk 0:00:59]} 24. e6
{[%clk 0:00:48.5]} 24... fxe6 {[%clk 0:00:58.9]} 25. dxe6 {[%clk 0:00:47.4]}
25... Qe7 {[%clk 0:00:59]} 26. Nd5 {[%clk 0:00:35.3]} 26... Bxd5 {[%clk
0:00:57.9]} 27. Rxd5 {[%clk 0:00:34.2]} 27... Nxe6 {[%clk 0:00:58.2]} 28. Nxe6
{[%clk 0:00:20.5]} 28... Qxe6 {[%clk 0:00:59.1]} 29. Rad1 {[%clk 0:00:20]} 29...
Re7 {[%clk 0:00:34]} 30. Re5 {[%clk 0:00:18.3]} 30... Qf7 {[%clk 0:00:33.1]} 31.
Rf5 {[%clk 0:00:10.7]} 31... Qe8 {[%clk 0:00:31.6]} 32. Rf1 {[%clk 0:00:05.4]}
32... Rc4 {[%clk 0:00:30.4]} 33. Qf3 {[%clk 0:00:04.8]} 33... Rxh4 {[%clk
0:00:28.9]} 34. g3 {[%clk 0:00:02.9]} 34... Rhe4 {[%clk 0:00:28.3]} 35. Kg2
{[%clk 0:00:02.9]} 35... Re1 {[%clk 0:00:28.2]} 36. Rxe1 {[%clk 0:00:02.4]}
36... Rxe1 {[%clk 0:00:29.1]} 37. Bd4 {[%clk 0:00:02.2]} 37... Qe4 {[%clk
0:00:28.5]} 38. Qxe4 {[%clk 0:00:01.3]} 38... Rxe4 {[%clk 0:00:28.1]} 39. Be3
{[%clk 0:00:01.6]} 39... Ra4 {[%clk 0:00:28]} 40. Rd5 {[%clk 0:00:02]} 40...
Rxa2 {[%clk 0:00:27.8]} 41. Rd7 {[%clk 0:00:02.8]} 41... b4 {[%clk 0:00:25.1]}
42. Ra7 {[%clk 0:00:03.4]} 42... b3 {[%clk 0:00:24.4]} 43. Bd4 {[%clk
0:00:03.8]} 43... b2 {[%clk 0:00:24.1]} 44. Rb7 {[%clk 0:00:02.6]} 44... a5
{[%clk 0:00:22.6]} 45. Bxb2 {[%clk 0:00:02.4]} 45... a4 {[%clk 0:00:22.7]} 46.
Bd4 {[%clk 0:00:02.7]} 46... a3 {[%clk 0:00:22.8]} 47. Ra7 {[%clk 0:00:02.9]}
47... h6 {[%clk 0:00:21.3]} 48. Be3 {[%clk 0:00:02.1]} 48... Bd6 {[%clk
0:00:16.4]} 49. Kf3 {[%clk 0:00:01.4]} 49... Be5 {[%clk 0:00:16.7]} 50. Ke4
{[%clk 0:00:01.8]} 50... Bf6 {[%clk 0:00:16.1]} 51. g4 {[%clk 0:00:02.2]} 51...
Kh7 {[%clk 0:00:16.4]} 52. f4 {[%clk 0:00:02.6]} 52... Kg6 {[%clk 0:00:16.4]}
53. f5+ {[%clk 0:00:02.4]} 53... Kh7 {[%clk 0:00:16.8]} 54. Kd5 {[%clk
0:00:02.1]} 54... Ra1 {[%clk 0:00:13.6]} 55. Ke4 {[%clk 0:00:02.1]} 55... a2
{[%clk 0:00:12.2]} 56. Kf3 {[%clk 0:00:02]} 56... Rf1+ {[%clk 0:00:12.3]} 57.
Bf2 {[%clk 0:00:01.8]} 57... a1=Q {[%clk 0:00:12.6]} 58. Rxa1 {[%clk 0:00:01.7]}
58... Rxa1 {[%clk 0:00:13.5]} 59. Kg2 {[%clk 0:00:02.1]} 59... Ra4 {[%clk
0:00:13.4]} 60. Bg3 {[%clk 0:00:03]} 60... Rxg4 {[%clk 0:00:13]} 61. Kh3 {[%clk
0:00:03.9]} 61... Rg5 {[%clk 0:00:13.2]} 62. Bh4 {[%clk 0:00:04.8]} 62... Rxf5
{[%clk 0:00:13.6]} 63. Bg5 {[%clk 0:00:05.4]} 63... Rxg5 {[%clk 0:00:13.8]} 64.
Kh2 {[%clk 0:00:05]} 64... Kg6 {[%clk 0:00:14.7]} 65. Kh3 {[%clk 0:00:05.8]}
65... Kf5 {[%clk 0:00:15.6]} 66. Kh2 {[%clk 0:00:06.7]} 66... Kf4 {[%clk
0:00:16.5]} 67. Kh3 {[%clk 0:00:07.6]} 67... Kf3 {[%clk 0:00:16.3]} 68. Kh2
{[%clk 0:00:08.5]} 68... Be7 {[%clk 0:00:14.9]} 69. Kh1 {[%clk 0:00:09.4]} 69...
Kf2 {[%clk 0:00:14.9]} 70. Kh2 {[%clk 0:00:10.3]} 70... Rh5# {[%clk 0:00:15.4]}
0-1

[Event "Early-Titled-Tuesday-Blitz-October-03-2023"]
[Site "Chess.com"]
[Date "2023.10.03"]
[Round "2"]
[White "betta2004"]
[Black "AlmasRakhmatullaev"]
[Result "1/2-1/2"]
[WhiteElo "2556"]
[BlackElo "2797"]
[TimeControl "180+1"]
[EndTime "8:18:31 PDT"]
[Termination "Game drawn by agreement"]

1. e4 {[%clk 0:03:00.9]} 1... e5 {[%clk 0:02:58.2]} 2. Nf3 {[%clk 0:02:53.6]}
2... Nf6 {[%clk 0:02:58]} 3. Nxe5 {[%clk 0:02:49.8]} 3... d6 {[%clk 0:02:58.1]}
4. Nf3 {[%clk 0:02:48.6]} 4... Nxe4 {[%clk 0:02:58.6]} 5. Nc3 {[%clk 0:02:48.4]}
5... Nxc3 {[%clk 0:02:58.8]} 6. dxc3 {[%clk 0:02:49.3]} 6... Be7 {[%clk
0:02:59.5]} 7. Bd3 {[%clk 0:02:49.8]} 7... Be6 {[%clk 0:03:00]} 8. Bf4 {[%clk
0:02:50.1]} 8... Nc6 {[%clk 0:02:59.3]} 9. Qd2 {[%clk 0:02:50.5]} 9... Qd7
{[%clk 0:02:58.6]} 10. O-O-O {[%clk 0:02:51]} 10... O-O-O {[%clk 0:02:46.7]} 11.
Rhe1 {[%clk 0:02:49]} 11... h6 {[%clk 0:02:45.7]} 12. h4 {[%clk 0:02:48.6]}
12... Rhe8 {[%clk 0:02:43.5]} 13. Nd4 {[%clk 0:02:38.9]} 13... Nxd4 {[%clk
0:02:32.7]} 14. cxd4 {[%clk 0:02:39.8]} 14... Bxh4 {[%clk 0:02:32.4]} 15. Qa5
{[%clk 0:02:37.3]} 15... Kb8 {[%clk 0:02:32.1]} 16. d5 {[%clk 0:02:30.7]} 16...
Bf5 {[%clk 0:02:26.2]} 17. Bb5 {[%clk 0:02:30.4]} 17... Rxe1 {[%clk 0:02:09]}
18. Rxe1 {[%clk 0:01:44.7]} 18... Qc8 {[%clk 0:01:40]} 19. Re3 {[%clk
0:01:32.6]} 19... Bxf2 {[%clk 0:01:33.7]} 20. Ra3 {[%clk 0:01:27.7]} 20... Bb6
{[%clk 0:01:30.6]} 21. Qa4 {[%clk 0:01:23.7]} 21... Bd7 {[%clk 0:01:28.7]} 22.
Be3 {[%clk 0:01:19.7]} 22... Bxb5 {[%clk 0:01:28.3]} 23. Qxb5 {[%clk 0:01:19.3]}
23... Qd7 {[%clk 0:01:23.5]} 24. Qd3 {[%clk 0:01:01]} 24... Qe7 {[%clk 0:01:22]}
25. Bd2 {[%clk 0:00:51]} 25... Re8 {[%clk 0:01:18.3]} 26. b4 {[%clk 0:00:46.3]}
26... Qe2 {[%clk 0:01:11]} 27. Qf5 {[%clk 0:00:40.7]} 27... f6 {[%clk
0:00:53.8]} 28. Qg6 {[%clk 0:00:32.3]} 28... Qe5 {[%clk 0:00:46.1]} 29. Bc3
{[%clk 0:00:25.5]} 29... Qg5+ {[%clk 0:00:45.7]} 30. Qxg5 {[%clk 0:00:25.3]}
30... hxg5 {[%clk 0:00:46.6]} 31. Kd1 {[%clk 0:00:22.5]} 31... Re3 {[%clk
0:00:45.7]} 32. b5 {[%clk 0:00:21.7]} 32... Bd4 {[%clk 0:00:33.6]} 33. Bb4
{[%clk 0:00:21.4]} 33... Rxa3 {[%clk 0:00:32.6]} 34. Bxa3 {[%clk 0:00:22.3]}
34... Kc8 {[%clk 0:00:32]} 35. Ke2 {[%clk 0:00:22.1]} 35... Kd7 {[%clk
0:00:32.2]} 36. Kd3 {[%clk 0:00:22.5]} 36... Be5 {[%clk 0:00:32]} 37. Ke4 {[%clk
0:00:22.5]} 37... Ke7 {[%clk 0:00:32.4]} 38. g4 {[%clk 0:00:21.9]} 38... g6
{[%clk 0:00:29]} 39. c4 {[%clk 0:00:21.1]} 39... Kd7 {[%clk 0:00:24.2]} 40. Bc1
{[%clk 0:00:20]} 40... a6 {[%clk 0:00:23.1]} 41. a4 {[%clk 0:00:19.9]} 41... Bf4
{[%clk 0:00:17.6]} 42. Bb2 {[%clk 0:00:19.1]} 42... Be5 {[%clk 0:00:17.1]} 43.
Bc1 {[%clk 0:00:19.2]} 43... c6 {[%clk 0:00:17.6]} 44. Be3 {[%clk 0:00:08.6]}
44... axb5 {[%clk 0:00:15.9]} 45. axb5 {[%clk 0:00:07.9]} 45... Kc7 {[%clk
0:00:12.3]} 46. Bf2 {[%clk 0:00:03]} 46... Bc3 {[%clk 0:00:12.1]} 47. Be3 {[%clk
0:00:02.5]} 47... Bb2 {[%clk 0:00:11.4]} 48. Bf2 {[%clk 0:00:02.7]} 48... Kd7
{[%clk 0:00:12]} 49. Be3 {[%clk 0:00:02.3]} 49... Bc3 {[%clk 0:00:12.1]} 50. Bf2
{[%clk 0:00:03]} 50... Bd2 {[%clk 0:00:12.8]} 51. Bd4 {[%clk 0:00:03.2]} 51...
Ke7 {[%clk 0:00:13.4]} 52. dxc6 {[%clk 0:00:03.6]} 52... bxc6 {[%clk 0:00:13.6]}
53. bxc6 {[%clk 0:00:04.3]} 53... Ba5 {[%clk 0:00:08.3]} 54. Kd5 {[%clk
0:00:04.7]} 54... f5 {[%clk 0:00:08.2]} 55. c5 {[%clk 0:00:05.3]} 55... dxc5
{[%clk 0:00:07.9]} 56. Bxc5+ {[%clk 0:00:06.2]} 56... Kf7 {[%clk 0:00:08.4]} 57.
gxf5 {[%clk 0:00:05.9]} 57... gxf5 {[%clk 0:00:08.9]} 58. Ke5 {[%clk 0:00:06.4]}
58... Kg6 {[%clk 0:00:09]} 59. Bd6 {[%clk 0:00:07]} 59... g4 {[%clk 0:00:09]}
60. Kf4 {[%clk 0:00:07.4]} 60... Bd2+ {[%clk 0:00:05.9]} 61. Kg3 {[%clk
0:00:07.3]} 61... Ba5 {[%clk 0:00:04.5]} 62. c7 {[%clk 0:00:07.5]} 62... Bxc7
{[%clk 0:00:04.8]} 63. Bxc7 {[%clk 0:00:08.4]} 63... Kg5 {[%clk 0:00:05.5]} 64.
Bd8+ {[%clk 0:00:08.2]} 1/2-1/2